bitfinex-derivatives/quotes_BTCF0:USTF0_20241116
["timestamp","ask_amount","ask_price","bid_price","bid_amount"]
[1731723664392,0.00873177,91716.0,91698.0,0.04703217]
[1731723664595,0.00873177,91716.0,91694.0,0.0368]
[1731723664596,0.0974517,91715.0,91694.0,0.0368]
[1731723664797,0.0087317,91714.0,91694.0,0.0368]
[1731723665002,0.0087317,91713.0,91694.0,0.0368]
[1731723665204,0.00866683,91712.0,91694.0,0.0368]
[1731723665393,0.00866683,91711.0,91694.0,0.0368]
[1731723665595,0.00866683,91710.0,91694.0,0.0368]
[1731723665796,0.00866683,91709.0,91694.0,0.0317]
[1731723665995,0.00866683,91708.0,91694.0,0.0317]
[1731723666201,0.36939275,91707.0,91694.0,0.0317]
[1731723666498,0.00859275,91706.0,91694.0,0.0317]
[1731723666706,0.0085927,91705.0,91694.0,0.0317]
[1731723666903,0.08908,91704.0,91694.0,0.0317]
[1731723667200,0.00859172,91703.0,91694.0,0.0317]
[1731723667502,0.00859172,91702.0,91693.0,0.0332]
[1731723667798,0.00859172,91701.0,91693.0,0.0332]
[1731723667999,0.00859172,91700.0,91693.0,0.0332]
[1731723668193,0.00859732,91699.0,91693.0,0.0332]
[1731723668596,0.00859732,91698.0,91693.0,0.0332]
[1731723668797,0.00859732,91698.0,91686.0,0.0332]
[1731723669003,0.00859732,91697.0,91686.0,0.0332]
[1731723669302,0.3608,91699.0,91686.0,0.0332]
[1731723669303,0.52309901,91699.0,91686.0,0.0332]
[1731723669492,0.16229901,91698.0,91686.0,0.0332]
[1731723670607,0.16229901,91697.0,91681.0,0.0307]
[1731723670813,0.3608,91699.0,91692.0,0.19313407]
[1731723670995,0.3608,91699.0,91690.0,0.19313407]
[1731723671196,0.3608,91699.0,91689.0,0.19313407]
[1731723672095,0.32716,91698.0,91691.0,0.19313407]
[1731723672299,0.10652386,91690.0,91681.0,0.19313407]
[1731723672502,0.08908,91689.0,91680.0,0.19313407]
[1731723672892,0.38908,91689.0,91681.0,0.19313407]
[1731723673303,0.38908,91689.0,91682.0,0.19313407]
[1731723673704,0.3272,91688.0,91682.0,0.19313407]
[1731723673905,0.6272,91688.0,91681.0,0.19313407]
[1731723674105,0.3,91688.0,91681.0,0.19313407]
[1731723674309,0.3272,91687.0,91681.0,0.19313407]
[1731723674714,0.3272,91686.0,91680.0,0.19313407]
[1731723675004,0.3608,91681.0,91674.0,0.19823407]
[1731723675205,0.0327,91680.0,91672.0,0.19313407]
[1731723675503,0.3608,91673.0,91671.0,0.00202]
[1731723675709,0.09768464,91672.0,91671.0,0.00202]
[1731723676105,0.08908,91680.0,91671.0,0.10854386]
[1731723676298,0.08908,91680.0,91674.0,0.1938922]
[1731723676506,0.08908,91680.0,91675.0,0.1938922]
[1731723676904,0.08908,91680.0,91671.0,0.00202]
[1731723676905,0.32724,91679.0,91671.0,0.00202]
[1731723677113,0.08908,91680.0,91671.0,0.00202]
[1731723677609,0.00874478,91679.0,91671.0,0.00202]
[1731723677809,0.00874478,91678.0,91671.0,0.00202]
[1731723678011,0.00874478,91677.0,91671.0,0.00202]
[1731723678325,0.00874478,91676.0,91671.0,0.00202]
[1731723678511,0.08908,91680.0,91671.0,0.00202]
[1731723678700,0.3608,91673.0,91671.0,0.00202]
[1731723679015,0.00876739,91672.0,91671.0,0.00202]
[1731723679217,0.32724,91672.0,91671.0,0.00202]
[1731723679911,0.36054,91672.0,91671.0,0.00202]
[1731723680511,0.36931533,91672.0,91671.0,0.00202]
[1731723680904,0.66931533,91672.0,91671.0,0.00202]
[1731723681615,0.79971536,91672.0,91671.0,0.00202]
[1731723681916,0.66931533,91672.0,91671.0,0.00202]
[1731723682121,0.66054,91672.0,91671.0,0.00202]
[1731723682313,0.66935548,91672.0,91671.0,0.00202]
[1731723682511,0.79948358,91672.0,91671.0,0.00202]
[1731723683316,0.66934728,91672.0,91671.0,0.00202]
[1731723684122,1.03012336,91672.0,91671.0,0.00202]
[1731723684315,1.02134,91672.0,91671.0,0.00202]
[1731723684516,1.03012193,91672.0,91671.0,0.00202]
[1731723685222,1.03012193,91672.0,91666.0,9.758e-05]
[1731723685525,0.32728,91671.0,91666.0,9.758e-05]
[1731723685725,0.00877933,91670.0,91666.0,9.758e-05]
[1731723686022,0.10652386,91667.0,91666.0,9.758e-05]
[1731723686414,0.43380386,91667.0,91666.0,9.758e-05]
[1731723686615,0.08912,91667.0,91666.0,9.758e-05]
[1731723688325,0.3109,91672.0,91666.0,9.758e-05]
[1731723688526,0.09770859,91671.0,91666.0,9.758e-05]
[1731723688721,0.00858859,91670.0,91666.0,9.758e-05]
[1731723688921,0.08912,91671.0,91666.0,9.758e-05]
[1731723695428,0.00859531,91670.0,91666.0,9.758e-05]
[1731723695635,0.00859531,91669.0,91666.0,9.758e-05]
[1731723695822,0.08912,91671.0,91666.0,9.758e-05]
[1731723696024,0.00859531,91670.0,91666.0,9.758e-05]
[1731723696331,0.00859531,91669.0,91666.0,9.758e-05]
[1731723696532,0.08912,91671.0,91666.0,9.758e-05]
[1731723696924,0.1301363,91670.0,91666.0,9.758e-05]
[1731723697525,0.1301363,91669.0,91666.0,9.758e-05]
[1731723697740,0.1301363,91667.0,91666.0,9.758e-05]
[1731723698033,0.25141901,91671.0,91666.0,9.758e-05]
[1731723698233,0.55141901,91671.0,91666.0,9.758e-05]
[1731723698531,0.16229901,91670.0,91666.0,9.758e-05]
[1731723699627,0.32737645,91669.0,91655.0,0.0051]
[1731723699930,0.3608,91656.0,91655.0,0.0051]
[1731723700131,0.3608,91656.0,91641.0,0.0307]
[1731723700132,0.58017091,91656.0,91644.0,0.0051]
[1731723700334,0.58017091,91656.0,91641.0,0.0307]
[1731723700335,0.10652386,91643.0,91641.0,0.0307]
[1731723700537,0.49125091,91656.0,91641.0,0.0307]
[1731723700740,0.10652386,91649.0,91641.0,0.0307]
[1731723701438,0.10652386,91642.0,91641.0,0.0307]
[1731723701642,0.19544386,91642.0,91641.0,0.0307]
[1731723702233,0.08892,91642.0,91641.0,0.0307]
[1731723702433,0.09752991,91642.0,91641.0,0.0307]
[1731723702639,0.08900499,91642.0,91641.0,0.0307]
[1731723702834,0.58811261,91642.0,91630.0,0.0051]
[1731723703041,0.58811261,91642.0,91622.0,0.0302]
[1731723703042,0.13049444,91633.0,91625.0,0.0051]
[1731723703230,0.10652386,91626.0,91623.0,0.0641]
[1731723703428,0.09752818,91625.0,91623.0,0.0641]
[1731723703635,0.00860818,91624.0,91623.0,0.0641]
[1731723704337,0.08892,91625.0,91623.0,0.0641]
[1731723708526,0.10652386,91629.0,91623.0,0.0641]
[1731723708731,0.02191266,91642.0,91626.0,0.3608]
[1731723708937,0.02191266,91642.0,91634.0,0.3608]
[1731723709131,8.499e-05,91642.0,91635.0,0.0315]
[1731723709331,0.08892,91641.0,91635.0,0.0315]
[1731723709626,8.499e-05,91642.0,91635.0,0.22569302]
[1731723709831,0.08892,91641.0,91635.0,0.22569302]
[1731723710033,0.10816093,91662.0,91637.0,0.19419302]
[1731723710238,0.10816093,91662.0,91646.0,0.3608]
[1731723710436,0.08892,91661.0,91646.0,0.3608]
[1731723710646,0.00855919,91660.0,91648.0,0.19419302]
[1731723710830,0.08892,91661.0,91649.0,0.19419302]
[1731723712040,0.08892,91661.0,91650.0,0.0304]
[1731723712948,0.10652386,91655.0,91650.0,0.0304]
[1731723714043,0.00857909,91654.0,91650.0,0.0304]
[1731723714243,0.10652386,91655.0,91650.0,0.0304]
[1731723716062,0.08892,91654.0,91650.0,0.0304]
[1731723717062,0.00857337,91653.0,91650.0,0.0304]
[1731723717254,0.08892,91654.0,91650.0,0.0304]
[1731723717455,0.00857335,91653.0,91650.0,0.0304]
[1731723717652,0.08892,91654.0,91650.0,0.0304]
[1731723719259,0.08892,91654.0,91647.0,0.0307]
[1731723719469,0.10652386,91648.0,91647.0,0.0307]
[1731723720962,0.10652386,91648.0,91646.0,0.3608]
[1731723721669,0.10652386,91648.0,91638.0,0.19419302]
[1731723721960,0.10652386,91641.0,91636.0,0.0051]
[1731723722159,0.08892,91640.0,91635.0,0.0315]
[1731723722356,0.10652386,91641.0,91636.0,0.19419302]
[1731723722560,0.19544386,91648.0,91640.0,0.3608]
[1731723722766,0.19544386,91648.0,91640.0,0.55499302]
[1731723722967,0.19544386,91648.0,91641.0,0.19419302]
[1731723723296,0.13049444,91645.0,91640.0,0.3608]
[1731723724363,0.13049444,91646.0,91640.0,0.3608]
[1731723724568,0.19544386,91648.0,91640.0,0.3608]
[1731723724569,0.13049444,91645.0,91640.0,0.3608]
[1731723724970,0.19544386,91648.0,91640.0,0.3608]
[1731723724971,0.13049444,91646.0,91640.0,0.3608]
[1731723725669,0.13049444,91645.0,91640.0,0.3608]
[1731723726467,0.13049444,91646.0,91640.0,0.3608]
[1731723727670,0.13049444,91645.0,91640.0,0.3608]
[1731723727867,0.13049444,91646.0,91640.0,0.3608]
[1731723728166,0.13049444,91646.0,91645.0,0.3608]
[1731723730270,0.10652386,91648.0,91645.0,0.3608]
[1731723730867,0.10652386,91648.0,91645.0,0.55499302]
[1731723732262,0.10652386,91648.0,91647.0,0.19419302]
[1731723732867,0.19416386,91648.0,91647.0,0.19419302]
[1731723734161,0.19416386,91648.0,91645.0,0.40733218]
[1731723737566,0.19416386,91648.0,91646.0,0.25892403]
[1731723738273,0.19416386,91648.0,91645.0,0.40733218]
[1731723738569,0.16313771,91646.0,91645.0,0.40733218]
[1731723739674,0.05303531,91647.0,91645.0,0.3608]
[1731723740674,0.00862908,91646.0,91645.0,0.3608]
[1731723740882,0.06166439,91646.0,91645.0,0.3608]
[1731723744164,0.06166439,91646.0,91643.0,0.04808623]
[1731723744381,0.38992911,91648.0,91636.0,0.19424482]
[1731723744382,0.06166439,91645.0,91636.0,0.19424482]
[1731723744574,0.16357085,91641.0,91637.0,0.19424482]
[1731723744772,0.16357085,91639.0,91634.0,0.58564482]
[1731723745468,0.10652386,91641.0,91634.0,0.71505503]
[1731723745673,0.10652386,91641.0,91640.0,0.2594924]
[1731723746277,0.10652386,91641.0,91633.0,0.32365503]
[1731723746278,0.24597499,91641.0,91637.0,0.2594924]
[1731723746578,0.3608,91638.0,91633.0,0.2594924]
[1731723746767,0.3608,91638.0,91632.0,0.2594924]
[1731723746768,0.08764,91637.0,91632.0,0.2594924]
[1731723746970,0.08764,91637.0,91628.0,0.04604253]
[1731723746971,0.10652386,91633.0,91628.0,0.04604253]
[1731723747169,0.10652386,91633.0,91631.0,0.25950019]
[1731723747575,0.10652386,91633.0,91630.0,0.25950019]
[1731723748279,0.13082021,91641.0,91632.0,0.3608]
[1731723748478,0.3608,91650.0,91632.0,0.3608]
[1731723748479,0.21846021,91644.0,91640.0,0.3608]
[1731723748675,0.08764,91644.0,91640.0,0.3608]
[1731723748872,0.08764,91644.0,91641.0,0.25950616]
[1731723749068,0.10652386,91653.0,91641.0,0.25950616]
[1731723749069,0.13082021,91649.0,91641.0,0.25950616]
[1731723749275,0.21846021,91649.0,91646.0,0.19458212]
[1731723749683,0.13082021,91648.0,91646.0,0.19458212]
[1731723749870,0.21846021,91649.0,91647.0,0.19458212]
[1731723750479,0.21846021,91649.0,91648.0,0.19458212]
[1731723750690,0.21842629,91649.0,91647.0,0.19458212]
[1731723750982,0.13078629,91648.0,91647.0,0.19458212]
[1731723751179,0.13078629,91648.0,91646.0,0.19458212]
[1731723751385,0.21842629,91649.0,91647.0,0.19458212]
[1731723752079,0.13078629,91648.0,91646.0,0.19458212]
[1731723752284,0.21842629,91649.0,91647.0,0.19458212]
[1731723752487,0.13078629,91648.0,91643.0,0.25950616]
[1731723753483,0.19576525,91646.0,91640.0,0.40793314]
[1731723753785,0.19576525,91644.0,91640.0,0.40793314]
[1731723754591,0.19576525,91642.0,91640.0,0.40793314]
[1731723754884,0.16349724,91645.0,91640.0,0.40793314]
[1731723755085,0.13078083,91641.0,91640.0,0.40793314]
[1731723755482,0.16349724,91647.0,91640.0,0.40793314]
[1731723756385,0.16349724,91646.0,91640.0,0.40793314]
[1731723756591,0.16349724,91647.0,91640.0,0.40793314]
[1731723758477,0.13076475,91641.0,91640.0,0.40793314]
[1731723760382,0.08764,91651.0,91640.0,0.77658954]
[1731723760583,0.08764,91651.0,91644.0,0.32450513]
[1731723761291,0.13076475,91659.0,91650.0,0.3608]
[1731723761500,0.13240182,91662.0,91658.0,0.3608]
[1731723761682,0.00163707,91662.0,91660.0,0.19467877]
[1731723761883,0.00163707,91662.0,91659.0,0.0317]
[1731723762585,0.23728861,91679.0,91660.0,0.65133289]
[1731723762781,0.13076475,91681.0,91674.0,0.3608]
[1731723763086,0.13076475,91687.0,91678.0,0.19442866]
[1731723763283,0.13076475,91688.0,91685.0,0.3608]
[1731723763591,0.13076475,91692.0,91685.0,0.3608]
[1731723763888,0.10652386,91693.0,91685.0,0.3608]
[1731723765299,0.10652386,91686.0,91680.0,0.19442866]
[1731723765492,0.10652386,91686.0,91678.0,0.19442866]
[1731723765686,0.10652386,91686.0,91676.0,0.19442866]
[1731723765887,0.10652386,91686.0,91676.0,0.04657203]
[1731723766087,0.10652386,91686.0,91676.0,0.19442866]
[1731723766290,0.10652386,91686.0,91675.0,0.19442866]
[1731723766490,0.10652386,91686.0,91674.0,0.55522866]
[1731723766786,0.10652386,91693.0,91678.0,0.19442866]
[1731723767093,0.10652386,91693.0,91674.0,0.3608]
[1731723767094,0.10652386,91693.0,91682.0,0.55522866]
[1731723767288,0.08588,91692.0,91682.0,0.55522866]
[1731723767483,0.08588,91692.0,91682.0,0.3608]
[1731723767890,0.10652386,91686.0,91675.0,0.19952866]
[1731723768086,0.10652386,91679.0,91674.0,0.3608]
[1731723768293,0.08588,91678.0,91674.0,0.3608]
[1731723772088,0.08588,91678.0,91669.0,0.0051]
[1731723772089,0.3608,91677.0,91669.0,0.0051]
[1731723772396,0.10652386,91672.0,91664.0,0.3608]
[1731723772584,0.10652386,91665.0,91657.0,0.0051]
[1731723772893,0.08588,91664.0,91653.0,0.04806891]
[1731723773099,0.08588,91664.0,91652.0,0.38771201]
[1731723773100,0.15108,91664.0,91652.0,0.38771201]
[1731723773293,0.15108,91664.0,91652.0,0.3608]
[1731723773593,0.15108,91664.0,91652.0,0.4082823]
[1731723774692,0.15108,91664.0,91647.0,0.0051]
[1731723774693,0.10652386,91656.0,91647.0,0.0051]
[1731723774883,0.10652386,91656.0,91648.0,0.04865855]
[1731723775090,0.10652386,91656.0,91648.0,0.00173]
[1731723775489,0.23728861,91656.0,91648.0,0.00173]
[1731723775892,0.10652386,91656.0,91648.0,0.00173]
[1731723776084,0.23728861,91656.0,91648.0,0.00173]
[1731723776492,0.10652386,91649.0,91648.0,0.00173]
[1731723776684,0.19240386,91649.0,91648.0,0.00173]
[1731723776886,0.32316861,91649.0,91648.0,0.00173]
[1731723777086,0.19240386,91649.0,91648.0,0.00173]
[1731723779392,0.3559011,91649.0,91648.0,0.00173]
[1731723781496,0.19240386,91649.0,91648.0,0.00173]
[1731723782193,0.62624772,91649.0,91641.0,0.0051]
[1731723782390,0.62624772,91649.0,91616.0,0.0059]
[1731723782391,0.10652386,91642.0,91634.0,0.0051]
[1731723782589,0.10652386,91634.0,91626.0,0.0051]
[1731723782895,0.10652386,91625.0,91619.0,0.0051]
[1731723783091,0.10652386,91625.0,91616.0,0.3931]
[1731723784386,0.10652386,91625.0,91616.0,0.43963686]
[1731723791098,0.10652386,91618.0,91616.0,0.04653686]
[1731723791290,0.10652386,91618.0,91610.0,0.00014015]
[1731723791291,0.08524,91617.0,91610.0,0.00014015]
[1731723791600,0.10652386,91611.0,91610.0,0.00014015]
[1731723792804,0.10652386,91611.0,91610.0,0.04774111]
[1731723793108,0.10652386,91611.0,91610.0,0.00014015]
[1731723793307,0.3608,91615.0,91610.0,0.00014015]
[1731723793598,0.0321,91614.0,91610.0,0.00014015]
[1731723794694,0.32748,91613.0,91610.0,0.00014015]
[1731723795207,0.32748,91612.0,91610.0,0.00014015]
[1731723795501,0.32748,91613.0,91610.0,0.00014015]
[1731723795701,0.32748,91612.0,91610.0,0.00014015]
[1731723796003,0.32748,91613.0,91610.0,0.00014015]
[1731723796402,0.32748,91612.0,91610.0,0.00014015]
[1731723796608,0.32748,91611.0,91610.0,0.00014015]
[1731723796910,0.32748,91613.0,91610.0,0.00014015]
[1731723797295,0.32748,91612.0,91610.0,0.00014015]
[1731723797608,0.32748,91613.0,91610.0,0.00014015]
[1731723798004,0.32748,91612.0,91610.0,0.00014015]
[1731723798304,0.32748,91611.0,91610.0,0.00014015]
[1731723798508,0.32748,91613.0,91610.0,0.00014015]
[1731723798994,0.32748,91612.0,91610.0,0.00014015]
[1731723799297,0.32748,91613.0,91610.0,0.00014015]
[1731723799904,0.07838132,91614.0,91610.0,0.00014015]
[1731723799905,0.32748,91612.0,91610.0,0.00014015]
[1731723800104,0.00539549,91611.0,91610.0,0.00014015]
[1731723800300,0.32748,91613.0,91610.0,0.00014015]
[1731723800498,0.07838132,91614.0,91610.0,0.00014015]
[1731723800499,0.32748,91612.0,91610.0,0.00014015]
[1731723800699,0.00552432,91611.0,91610.0,0.00014015]
[1731723800909,0.32748,91613.0,91610.0,0.00014015]
[1731723801098,0.07838132,91614.0,91610.0,0.00014015]
[1731723801099,0.32748,91612.0,91610.0,0.00014015]
[1731723801302,0.36629976,91611.0,91610.0,0.00014015]
[1731723801498,0.3608,91611.0,91610.0,0.00014015]
[1731723801805,0.68828,91611.0,91610.0,0.00014015]
[1731723802006,0.69381087,91611.0,91610.0,0.00014015]
[1731723802304,0.3608,91611.0,91610.0,0.00014015]
[1731723802512,0.10652386,91616.0,91610.0,0.00014015]
[1731723802700,0.08524,91619.0,91615.0,0.3608]
[1731723802901,0.08524,91619.0,91616.0,0.0312]
[1731723803912,0.10652386,91624.0,91616.0,0.0312]
[1731723804106,0.08524,91623.0,91616.0,0.0312]
[1731723805605,0.08524,91623.0,91616.0,0.392]
[1731723807506,0.10652386,91624.0,91616.0,0.392]
[1731723807710,0.08524,91623.0,91616.0,0.392]
[1731723808101,0.08524,91624.0,91616.0,0.392]
[1731723809617,0.08524,91624.0,91617.0,0.19442866]
[1731723809806,0.08524,91624.0,91620.0,0.19442866]
[1731723810007,0.08524,91624.0,91621.0,0.0321]
[1731723810402,0.08524,91624.0,91621.0,0.22652866]
[1731723810910,0.3608,91622.0,91619.0,0.19442866]
[1731723811113,0.10652386,91620.0,91613.0,0.19442866]
[1731723811314,0.10652386,91620.0,91610.0,0.04716102]
[1731723811613,0.10652386,91612.0,91610.0,0.04716102]
[1731723811800,0.08524,91611.0,91610.0,0.00014015]
[1731723813306,0.24805699,91611.0,91610.0,0.00014015]
[1731723813604,0.13830093,91611.0,91610.0,0.00014015]
[1731723814212,0.46578093,91611.0,91610.0,0.00014015]
[1731723814400,0.46578196,91611.0,91610.0,0.00014015]
[1731723815209,0.46586518,91611.0,91610.0,1e-08]
[1731723816111,0.5124254,91611.0,91610.0,1e-08]
[1731723816702,0.9405397,91611.0,91598.0,0.0051]
[1731723816903,0.46732386,91601.0,91592.0,0.0051]
[1731723817119,0.64313631,91601.0,91587.0,0.0051]
[1731723817407,0.97065631,91601.0,91587.0,0.0051]
[1731723817607,0.84790582,91601.0,91587.0,0.0051]
[1731723818716,0.95442968,91601.0,91587.0,0.0051]
[1731723818906,0.21304772,91588.0,91581.0,0.0051]
[1731723819103,0.21304772,91588.0,91576.0,0.0323]
[1731723819104,0.08448,91587.0,91576.0,0.0323]
[1731723819304,0.10652386,91577.0,91576.0,0.0323]
[1731723820015,0.23701558,91577.0,91576.0,0.0323]
[1731723820413,0.23715727,91577.0,91576.0,0.0323]
[1731723820719,0.10666555,91577.0,91576.0,0.0323]
[1731723821421,0.10666555,91577.0,91568.0,0.04580864]
[1731723821622,0.10652386,91569.0,91566.0,0.36232]
[1731723821916,0.10652386,91569.0,91566.0,0.3608]
[1731723826113,0.10652386,91576.0,91566.0,0.3608]
[1731723826315,0.00014169,91577.0,91575.0,0.3608]
[1731723826621,0.00014169,91577.0,91576.0,0.0313]
[1731723827013,0.08452,91581.0,91576.0,0.0313]
[1731723827325,0.08452,91581.0,91577.0,0.3608]
[1731723827816,0.10652386,91593.0,91577.0,0.3608]
[1731723828011,0.08452,91592.0,91588.0,0.3608]
[1731723828214,0.08452,91591.0,91588.0,0.3608]
[1731723830225,0.08452,91591.0,91589.0,0.0314]
[1731723834111,0.10652386,91590.0,91577.0,0.3659]
[1731723834312,0.10652386,91578.0,91577.0,0.3608]
[1731723834511,0.10652386,91578.0,91568.0,0.0331]
[1731723834512,0.10652386,91578.0,91568.0,0.0812251]
[1731723834720,0.10652386,91569.0,91568.0,0.0331]
[1731723835519,0.10652386,91576.0,91568.0,0.0331]
[1731723835722,0.10652386,91576.0,91574.0,0.3608]
[1731723835925,0.10652386,91584.0,91574.0,0.3608]
[1731723836116,0.08452,91583.0,91574.0,0.3608]
[1731723836320,0.10652386,91577.0,91574.0,0.3608]
[1731723837220,0.08452,91583.0,91574.0,0.3608]
[1731723840425,0.08452,91583.0,91576.0,0.19428233]
[1731723840626,0.08452,91583.0,91577.0,0.19428233]
[1731723841533,0.08452,91583.0,91579.0,0.19428233]
[1731723842332,0.08452,91583.0,91580.0,0.19428233]
[1731723842528,0.08452,91583.0,91581.0,0.19428233]
[1731723842728,0.08452,91583.0,91575.0,0.19428233]
[1731723842929,0.08452,91583.0,91576.0,0.3608]
[1731723843236,0.08452,91583.0,91576.0,0.55508233]
[1731723843542,0.10652386,91577.0,91576.0,0.55508233]
[1731723844037,0.10652386,91577.0,91576.0,0.3608]
[1731723845042,0.23701558,91577.0,91576.0,0.3608]
[1731723845443,0.23728319,91577.0,91576.0,0.3608]
[1731723845641,0.10652386,91577.0,91576.0,0.3608]
[1731723846537,0.46732386,91577.0,91569.0,0.19428233]
[1731723846732,0.10652386,91568.0,91567.0,0.19428233]
[1731723846932,0.10652386,91568.0,91565.0,0.19428233]
[1731723846933,0.19104386,91568.0,91565.0,0.19428233]
[1731723847152,0.19104386,91568.0,91564.0,0.19428233]
[1731723847342,0.19104386,91568.0,91565.0,0.19428233]
[1731723847643,0.19104386,91568.0,91564.0,0.19428233]
[1731723849244,0.19104386,91568.0,91563.0,0.55508233]
[1731723849655,0.19104386,91568.0,91563.0,0.3608]
[1731723850753,0.19104386,91568.0,91567.0,0.19428233]
[1731723851056,0.19104386,91568.0,91566.0,0.19428233]
[1731723851245,0.19104386,91568.0,91567.0,0.19428233]
[1731723851453,0.19104386,91568.0,91566.0,0.19428233]
[1731723853149,0.10652386,91567.0,91563.0,0.19428233]
[1731723853354,0.16832386,91567.0,91562.0,0.00014046]
[1731723853655,0.13076605,91566.0,91562.0,0.00014046]
[1731723853958,0.0618,91567.0,91562.0,0.00014046]
[1731723858655,0.49156605,91569.0,91562.0,0.00014046]
[1731723858860,0.08336,91568.0,91565.0,0.3608]
[1731723859161,0.08336,91568.0,91566.0,0.0937]
[1731723859469,0.18988386,91568.0,91566.0,0.0937]
[1731723862268,0.08336,91567.0,91566.0,0.0937]
[1731723862560,0.08336,91567.0,91566.0,0.25658233]
[1731723862765,0.08336,91567.0,91566.0,0.22638233]
[1731723863158,0.08336,91567.0,91563.0,0.19500086]
[1731723863468,0.08336,91567.0,91562.0,0.00014046]
[1731723865767,0.16310194,91564.0,91562.0,0.00014046]
[1731723866267,0.16310194,91563.0,91562.0,0.00014046]
[1731723866967,0.16310194,91564.0,91562.0,0.00014046]
[1731723867358,0.0314,91564.0,91562.0,0.00014046]
[1731723867568,0.19450194,91564.0,91562.0,0.00014046]
[1731723867864,0.16338165,91563.0,91562.0,0.00014046]
[1731723869467,0.0314,91564.0,91562.0,0.00014046]
[1731723870472,0.19479545,91564.0,91562.0,0.00014046]
[1731723870674,0.0834,91563.0,91562.0,0.00014046]
[1731723870972,0.13648753,91563.0,91562.0,0.00014046]
[1731723871763,0.0834,91563.0,91562.0,0.00014046]
[1731723871964,0.24681671,91563.0,91562.0,0.00014046]
[1731723872367,0.0834,91563.0,91562.0,0.00014046]
[1731723873376,0.0834,91563.0,91562.0,0.19524586]
[1731723873672,0.0834,91563.0,91562.0,0.00014046]
[1731723874078,0.0834,91563.0,91562.0,0.36094046]
[1731723876367,0.0005,91567.0,91562.0,0.36094046]
[1731723876368,0.0834,91565.0,91562.0,0.36094046]
[1731723879078,0.0834,91565.0,91562.0,0.40909151]
[1731723880902,0.13075412,91564.0,91562.0,0.40909151]
[1731723882274,0.13075412,91565.0,91562.0,0.40909151]
[1731723882673,0.16391671,91567.0,91562.0,0.36094046]
[1731723882873,0.16341671,91563.0,91562.0,0.36094046]
[1731723883076,0.05308415,91563.0,91562.0,0.36094046]
[1731723883273,0.05308415,91565.0,91562.0,0.36094046]
[1731723883473,0.05308415,91564.0,91562.0,0.36094046]
[1731723883687,0.05308415,91563.0,91562.0,0.36094046]
[1731723884588,0.05308415,91565.0,91562.0,0.36094046]
[1731723884880,0.05308415,91564.0,91562.0,0.36094046]
[1731723885083,0.05308415,91563.0,91562.0,0.36094046]
[1731723885379,0.05308415,91565.0,91562.0,0.36094046]
[1731723885580,0.05308415,91564.0,91562.0,0.36094046]
[1731723885781,0.05308415,91563.0,91562.0,0.36094046]
[1731723886670,0.05308415,91565.0,91562.0,0.36094046]
[1731723887980,0.22772337,91566.0,91562.0,0.55603882]
[1731723888681,0.08304,91565.0,91562.0,0.55603882]
[1731723888888,0.13082337,91566.0,91562.0,0.55603882]
[1731723889086,0.08304,91564.0,91562.0,0.55603882]
[1731723890179,0.13082337,91566.0,91562.0,0.55603882]
[1731723890483,0.08304,91565.0,91562.0,0.36094046]
[1731723890689,0.08304,91565.0,91562.0,0.65167161]
[1731723890982,0.08304,91565.0,91562.0,0.03074046]
[1731723891176,0.08304,91565.0,91562.0,0.29087161]
[1731723891378,0.08304,91565.0,91563.0,0.26013115]
[1731723891574,0.08304,91565.0,91562.0,0.29087161]
[1731723892488,0.08304,91565.0,91563.0,0.26013115]
[1731723892987,0.08304,91565.0,91564.0,0.26013115]
[1731723893483,0.08304,91565.0,91562.0,0.29087161]
[1731723893683,0.08304,91565.0,91562.0,0.03074046]
[1731723893890,0.08304,91565.0,91563.0,0.26013115]
[1731723894184,0.08304,91565.0,91564.0,0.26013115]
[1731723894378,0.08304,91565.0,91563.0,0.26013115]
[1731723894573,0.08304,91565.0,91562.0,0.00014046]
[1731723895385,0.24656921,91565.0,91562.0,0.00014046]
[1731723895695,0.08304,91565.0,91562.0,0.00014046]
[1731723895883,0.16352921,91563.0,91562.0,0.00014046]
[1731723896087,0.08304,91565.0,91562.0,0.00014046]
[1731723896285,0.05308784,91564.0,91562.0,0.00014046]
[1731723896485,0.08304,91565.0,91562.0,0.00014046]
[1731723896486,0.16354537,91563.0,91562.0,0.00014046]
[1731723896886,0.08304,91565.0,91562.0,0.00014046]
[1731723897089,0.05308763,91564.0,91562.0,0.00014046]
[1731723897387,0.16354775,91563.0,91562.0,0.00014046]
[1731723897985,0.16354775,91564.0,91562.0,0.00014046]
[1731723898384,0.24658775,91563.0,91562.0,0.00014046]
[1731723898589,0.08304,91563.0,91562.0,0.00014046]
[1731723898796,0.16354775,91566.0,91562.0,0.00014046]
[1731723898986,0.13082856,91564.0,91562.0,0.00014046]
[1731723899386,0.13082856,91564.0,91562.0,0.1952065]
[1731723899697,0.08304,91565.0,91562.0,0.00014046]
[1731723899899,0.0005,91567.0,91563.0,0.19498324]
[1731723900096,0.0005,91567.0,91564.0,0.19498324]
[1731723900293,0.0005,91567.0,91565.0,0.22668324]
[1731723900601,0.0005,91567.0,91566.0,0.19498324]
[1731723900986,0.0005,91567.0,91565.0,0.0317]
[1731723901194,0.0005,91567.0,91566.0,0.36074]
[1731723902592,0.13082856,91579.0,91566.0,0.72154]
[1731723902790,0.13082856,91581.0,91578.0,0.3608]
[1731723902994,0.10652386,91596.0,91578.0,0.3608]
[1731723902995,0.1634964,91579.0,91578.0,0.3608]
[1731723903195,0.1634964,91581.0,91578.0,0.3608]
[1731723903411,0.10652386,91579.0,91578.0,0.3608]
[1731723903600,0.26997265,91579.0,91578.0,0.3608]
[1731723903795,0.10652386,91579.0,91578.0,0.30185268]
[1731723904599,0.26993483,91579.0,91578.0,0.30185268]
[1731723904910,0.10652386,91579.0,91578.0,0.30185268]
[1731723905791,0.10652386,91579.0,91572.0,0.0051]
[1731723905992,0.10652386,91579.0,91566.0,0.39542]
[1731723905993,0.16341097,91576.0,91566.0,0.3608]
[1731723906198,0.13070611,91570.0,91566.0,0.3608]
[1731723906398,0.24645097,91576.0,91566.0,0.3608]
[1731723906399,0.13070611,91567.0,91566.0,0.3608]
[1731723906787,0.13070611,91568.0,91566.0,0.3608]
[1731723906992,0.13070611,91568.0,91567.0,0.00454375]
[1731723907698,0.13070611,91568.0,91567.0,0.33218375]
[1731723908002,0.10613678,91568.0,91567.0,0.3395148]
[1731723908208,0.16341097,91577.0,91567.0,0.35327052]
[1731723908409,0.16341097,91578.0,91576.0,0.3608]
[1731723908610,0.16341097,91581.0,91577.0,0.01190781]
[1731723908902,0.16341097,91589.0,91580.0,0.3608]